bitfinex/quotes_ETHUSD_20250324
["timestamp","ask_amount","ask_price","bid_price","bid_amount"]
[1742798791937,3.0,2069.0,2068.3,4.83482]
[1742798792230,7.83328,2069.0,2068.3,4.83482]
[1742798792402,9.79156,2068.9,2068.2,4.83511]
[1742798792609,4.762484,2068.8,2068.2,4.83511]
[1742798793502,4.762484,2068.8,2068.2,4.73511]
[1742798795433,4.762484,2068.8,2068.2,9.57013]
[1742798795830,4.762484,2068.8,2068.2,4.73511]
[1742798797741,5.13205678,2068.8,2068.2,4.73511]
[1742798798834,0.51470774,2068.7,2068.2,4.73511]
[1742798799024,0.51470774,2068.7,2068.1,4.83531]
[1742798799229,0.51470774,2068.7,2068.2,4.83508]
[1742798800309,0.51470774,2068.7,2068.1,9.67053]
[1742798800526,0.51470774,2068.7,2068.2,4.83511]
[1742798801285,0.51470774,2068.7,2068.0,5.60188]
[1742798801286,5.34866774,2068.7,2068.0,5.60188]
[1742798801457,0.56467645,2068.6,2068.0,4.83558]
[1742798802019,0.56467645,2068.6,2067.9,9.6715]
[1742798802354,0.56467645,2068.6,2067.9,4.83569]
[1742798802652,0.59133742,2068.5,2067.9,4.83565]
[1742798803246,0.59133742,2068.5,2068.0,4.83558]
[1742798804164,3.0,2068.4,2068.0,4.83558]
[1742798806591,3.0,2068.4,2068.0,4.8355]
[1742798806753,4.956,2068.6,2068.3,4.83488]
[1742798806949,3.0,2068.5,2068.3,4.83488]
[1742798808660,3.0,2068.5,2068.3,9.66967]
[1742798808977,4.955,2068.8,2068.6,4.83406]
[1742798809678,4.955,2068.9,2068.5,9.66867]
[1742798809858,4.955,2068.9,2068.5,9.66862]
[1742798810055,4.955,2068.9,2068.3,4.88321855]
[1742798810281,0.4955,2068.8,2068.3,9.6696]
[1742798810580,0.4955,2068.8,2068.4,4.83464]
[1742798811175,0.4955,2068.8,2068.3,4.83472]
[1742798811376,0.4955,2068.8,2068.1,5.7333]
[1742798811570,0.4955,2068.8,2068.0,5.81781479]
[1742798811571,0.55,2068.7,2068.0,4.83558]
[1742798811767,0.887933,2068.6,2068.0,4.83558]
[1742798812684,0.887933,2068.6,2068.0,4.83544]
[1742798812845,0.887933,2068.6,2068.1,4.83534]
[1742798813050,0.55,2068.7,2068.1,4.83516]
[1742798814081,0.55,2068.7,2068.0,4.83558]
[1742798814082,5.38397,2068.7,2068.0,4.83544]
[1742798815577,3.0,2068.6,2068.0,4.83544]
[1742798815783,3.0,2068.4,2068.0,4.83544]
[1742798819187,3.0,2068.4,2067.9,4.83581]
[1742798819358,4.278819,2068.4,2067.9,4.83581]
[1742798819559,4.278819,2068.4,2067.9,9.67148]
[1742798820588,3.0,2068.4,2068.0,4.83557]
[1742798820787,3.0,2068.4,2068.0,4.83543]
[1742798820978,3.0,2068.4,2068.0,4.83539]
[1742798821385,3.0,2068.4,2068.3,4.83488]
[1742798821607,3.0,2068.4,2068.1,4.83531]
[1742798821905,3.0,2068.4,2068.1,4.83518]
[1742798822807,3.0,2068.4,2068.0,4.83558]
[1742798823185,3.0,2068.4,2068.0,9.67099]
[1742798823370,3.0,2068.4,2068.1,4.83535]
[1742798824710,3.0,2068.4,2068.0,4.83541]
[1742798825914,3.0,2068.4,2068.0,9.67082]
[1742798826066,3.0,2068.4,2068.0,4.83541]
[1742798827097,3.7954,2068.4,2067.9,4.83576]
[1742798827265,3.7954,2068.4,2067.9,9.67141]
[1742798827607,3.7954,2068.4,2068.0,4.83544]
[1742798827900,3.0,2068.4,2068.0,9.67084]
[1742798828070,3.0,2068.4,2068.1,4.83535]
[1742798828406,3.0,2068.4,2067.6,5.7133]
[1742798828407,0.55,2069.0,2068.6,4.83416]
[1742798828700,3.0,2068.8,2068.4,4.83445]
[1742798828864,4.951,2068.9,2068.4,4.83445]
[1742798829075,4.951,2068.9,2068.5,4.83436]
[1742798829269,4.951,2068.9,2068.4,4.83445]
[1742798829493,3.0,2068.8,2068.4,4.83445]
[1742798829698,3.0,2068.8,2068.4,5.394025]
[1742798830066,3.0,2068.8,2068.4,10.228545]
[1742798830267,3.0,2068.8,2068.4,5.394025]
[1742798830488,3.0,2068.8,2068.5,4.83431]
[1742798831197,3.0,2068.8,2068.4,5.394025]
[1742798831409,3.0,2068.8,2068.4,4.83445]
[1742798833017,3.0,2068.8,2068.4,9.66897]
[1742798833812,3.0,2068.8,2068.5,4.8344]
[1742798834790,3.0,2068.8,2068.5,10.42982]
[1742798834990,3.0,2068.8,2068.5,5.59551]
[1742798835290,3.0,2068.8,2068.5,5.877228]
[1742798835491,3.0,2069.1,2068.6,4.83409]
[1742798835692,7.949,2069.1,2068.7,4.83384]
[1742798835993,4.949,2069.1,2068.8,4.83368]
[1742798836299,4.949,2069.1,2068.8,9.66731]
[1742798836492,3.0,2069.0,2068.9,4.83348]
[1742798837018,3.0,2069.1,2068.9,4.83348]
[1742798837625,3.0,2069.1,2068.8,4.83366]
[1742798837800,3.0,2069.1,2068.8,9.66732]
[1742798837999,3.0,2069.1,2068.8,4.83363]
[1742798838202,3.0,2069.1,2068.9,4.83338]
[1742798839605,3.0,2069.1,2068.7,4.8339]
[1742798839805,3.0,2069.1,2068.7,9.66771]
[1742798840409,3.0,2069.1,2068.8,4.83371]
[1742798843000,3.0,2069.1,2068.8,4.83351]
[1742798843225,3.0,2069.1,2068.9,4.83331]
[1742798843429,4.947,2069.3,2069.0,4.83325]
[1742798843614,3.0,2069.2,2068.9,4.83331]
[1742798844260,3.0,2069.2,2069.0,4.83318]
[1742798845657,3.0,2069.2,2068.9,4.83331]
[1742798846559,3.7947,2069.2,2068.8,4.83367]
[1742798847231,3.0,2069.2,2068.8,4.83354]
[1742798847428,3.0,2069.2,2068.5,1.043018]
[1742798847629,3.0,2069.2,2068.7,9.66763]
[1742798847829,3.0,2069.2,2068.8,4.83348]
[1742798848136,3.0,2069.2,2068.9,4.83341]
[1742798848959,3.0,2069.2,2069.0,4.83318]
[1742798850183,3.0,2069.2,2068.9,4.8333]
[1742798850368,3.0,2069.2,2068.8,4.83366]
[1742798850658,3.0,2069.2,2068.8,9.66722]
[1742798850873,3.0,2069.2,2068.9,4.83348]
[1742798851042,3.7947,2069.2,2068.8,4.83356]
[1742798851242,3.7947,2069.2,2068.7,4.83389]
[1742798852465,3.7947,2069.2,2068.6,4.83404]
[1742798857182,3.7947,2069.2,2068.6,4.834]
[1742798857346,0.87417,2069.1,2068.7,4.83394]
[1742798857773,0.87417,2069.1,2068.6,4.83413]
[1742798858348,3.7947,2069.2,2068.7,4.83382]
[1742798859171,3.7947,2069.2,2068.7,9.66766]
[1742798859465,3.7947,2069.2,2068.7,4.83382]
[1742798861151,3.7947,2069.2,2068.8,4.83369]
[1742798861351,3.7947,2069.2,2068.5,5.65891]
[1742798861652,3.0,2069.2,2068.8,4.83369]
[1742798862784,3.0,2069.1,2068.8,4.83355]
[1742798863181,3.0,2069.1,2068.9,4.83348]
[1742798863850,4.942,2069.3,2068.9,9.66682]
[1742798864046,4.942,2069.3,2068.9,4.83334]
[1742798867559,3.0,2069.4,2068.8,5.65821]
[1742798867560,3.0,2069.4,2068.8,0.8245]
[1742798867761,26.727,2069.5,2068.8,0.8245]
[1742798868088,3.0,2069.3,2069.1,4.83301]
[1742798868390,3.0,2069.3,2069.1,4.83291]
[1742798868554,3.0,2069.3,2069.2,4.83278]
[1742798870502,3.0,2069.3,2069.0,4.83306]
[1742798872169,3.0,2069.3,2069.1,4.83301]
[1742798872373,4.941,2069.4,2069.3,4.83255]
[1742798872599,3.0,2069.5,2069.3,4.83255]
[1742798872799,26.725,2069.9,2069.6,4.83175]
[1742798872979,26.725,2069.9,2069.6,4.83173]
[1742798872980,31.665,2069.9,2069.6,4.83173]
[1742798873171,3.0,2069.8,2069.6,4.83173]
[1742798873371,31.665,2069.9,2069.6,4.83173]
[1742798873702,3.0,2069.8,2069.6,4.83173]
[1742798875292,3.0,2069.8,2069.6,4.83167]
[1742798876266,3.0,2070.4,2069.7,4.83161]
[1742798876476,3.0,2070.2,2069.8,4.83127]
[1742798877410,3.55,2070.3,2069.8,4.83127]
[1742798877596,4.938,2070.2,2069.8,4.83127]
[1742798877783,6.214798,2070.2,2069.7,4.83157]
[1742798878110,0.04837298,2070.1,2069.7,4.83157]
[1742798878908,3.0,2070.0,2069.5,5.59676]
[1742798879113,0.3048373,2069.9,2069.3,5.43739648]
[1742798879280,0.3048373,2069.9,2069.4,4.8323]
[1742798879809,0.3048373,2069.9,2069.5,0.7648]
[1742798880017,0.55,2070.0,2069.5,4.83207]
[1742798881411,3.0,2070.1,2069.8,4.83135]
[1742798881626,4.937,2070.0,2069.7,4.83155]
[1742798882000,4.937,2070.0,2069.8,4.83137]
[1742798882201,4.937,2070.0,2069.7,4.83155]
[1742798882602,4.937,2070.0,2069.7,5.874303]
[1742798882838,4.937,2070.0,2069.8,4.83127]
[1742798883007,4.937,2070.0,2069.8,9.66245]
[1742798885319,4.936,2070.4,2070.2,0.5390091]
[1742798885637,7.936,2070.4,2070.2,0.5390091]
[1742798885823,7.936,2070.4,2070.2,5.3694091]
[1742798886217,7.936,2070.4,2070.2,0.5390091]
[1742798886418,7.936,2070.4,2070.2,5.3693791]
[1742798888213,3.0,2070.4,2070.3,5.85019991]
[1742798889114,4.935,2070.8,2070.6,4.82943]
[1742798889337,3.0,2070.7,2070.6,4.82943]
[1742798890212,3.0,2071.0,2070.6,4.82943]
[1742798890412,3.0,2071.0,2070.6,9.65875]
[1742798890615,7.934,2071.0,2070.8,4.82901]
[1742798890813,4.934,2071.0,2070.8,4.82901]
[1742798891037,4.934,2071.0,2070.7,4.82923]
[1742798891237,3.0,2070.9,2070.7,4.82923]
[1742798891442,3.0,2070.9,2070.6,9.65892]
[1742798891839,7.934,2071.0,2070.6,4.82939]
[1742798892033,3.0,2070.9,2070.6,4.82939]
[1742798892748,3.0,2070.9,2070.7,4.82928]
[1742798893248,3.0,2070.9,2070.7,4.8291]
[1742798893544,3.0,2070.9,2070.8,4.82894]
[1742798893741,7.934,2071.0,2070.8,4.82887]
[1742798894646,7.934,2071.0,2070.7,4.82927]
[1742798894850,7.934,2071.0,2070.7,9.65854]
[1742798895044,3.04837298,2070.9,2070.5,10.49007]
[1742798895228,3.0,2070.9,2070.6,4.8295]
[1742798897152,3.0,2070.9,2070.6,9.65885]
[1742798897352,3.0,2070.9,2070.6,4.82935]
[1742798900142,3.0,2070.9,2070.5,5.66071]
[1742798900345,3.0,2070.9,2070.5,10.49037]
[1742798900541,3.0,2070.9,2070.6,4.82942]
[1742798900742,3.0,2070.9,2070.7,4.82923]
[1742798901453,4.934,2071.0,2070.5,1.98203599]
[1742798901757,7.934,2071.0,2070.8,4.82889]
[1742798902131,7.934,2071.0,2070.7,4.82927]
[1742798902326,7.934,2071.0,2070.7,10.8226256]
[1742798902530,7.934,2071.0,2070.7,10.8225056]
[1742798902759,7.934,2071.0,2070.7,5.9932356]
[1742798903153,7.934,2071.0,2070.8,4.82896]
[1742798904161,7.934,2071.0,2070.7,4.82915]
[1742798904459,7.934,2071.0,2070.7,9.65831]
[1742798904758,7.934,2071.0,2070.7,4.82915]
[1742798905855,7.934,2071.0,2070.6,5.6605]
[1742798906048,7.934,2071.0,2070.7,5.878294]
[1742798907185,7.934,2071.0,2070.7,1.049024]
[1742798907679,7.934,2071.0,2070.7,5.878184]
[1742798909252,7.934,2071.0,2070.7,1.049024]
[1742798910481,7.934,2071.0,2070.6,9.6587]
[1742798910685,3.0,2070.9,2070.7,4.82927]
[1742798910994,4.934,2071.0,2070.6,4.82932]
[1742798911662,3.0,2070.9,2070.6,4.82932]
[1742798913375,3.0,2070.9,2070.7,4.82922]
[1742798913685,3.0,2070.9,2070.6,9.65866]
[1742798914184,3.0,2070.9,2070.6,4.82932]
[1742798914885,3.0,2070.9,2070.4,5.62252]
[1742798915084,3.7934,2070.9,2070.4,5.62252]
[1742798915580,3.7934,2070.9,2070.4,10.45231]
[1742798915756,3.0,2070.9,2070.5,4.82966]
[1742798918188,3.0,2070.9,2070.4,4.82979]
[1742798921688,3.0,2070.9,2070.3,5.85015991]
[1742798921991,3.0,2070.9,2070.3,4.83005]
[1742798921992,7.82883,2070.9,2070.3,4.83005]
[1742798922187,3.0,2070.9,2070.3,4.83005]
[1742798922492,3.0,2070.9,2070.4,4.82998]
[1742798923562,3.0,2070.9,2070.3,4.83011]
[1742798923787,7.82884,2070.9,2070.3,4.83011]
[1742798923988,0.55,2070.6,2070.0,5.64981]
[1742798924188,3.0,2070.4,2069.7,9.66279]
[1742798924388,8.6274773,2070.4,2069.8,4.83135]
[1742798924591,3.0,2070.1,2069.6,5.65072]
[1742798924765,7.925,2070.1,2069.6,4.83172]
[1742798925165,12.7557,2070.1,2069.5,4.83204]
[1742798925366,7.925,2070.1,2069.5,9.66395]
[1742798925565,7.925,2070.1,2069.6,4.83182]
[1742798926494,4.925,2070.4,2069.9,4.83107]
[1742798926677,4.925,2070.4,2070.0,4.83071]
[1742798927074,4.925,2070.4,2070.1,4.83066]
[1742798927693,4.925,2070.4,2070.0,4.83071]
[1742798927900,4.925,2070.4,2069.9,4.83109]
[1742798929271,4.925,2070.4,2070.0,4.83086]
[1742798929498,4.925,2070.4,2070.0,4.83078]
[1742798929699,4.925,2070.4,2070.0,5.64978]
[1742798930198,26.703,2070.6,2070.4,4.82996]
[1742798930371,31.627,2070.6,2070.2,4.83035]
[1742798930572,3.0,2070.5,2070.3,0.483035]
[1742798932203,3.0,2070.5,2070.0,9.6617]
[1742798932388,3.0,2070.5,2070.0,4.83079]
[1742798933311,3.0,2070.5,2070.0,9.66155]
[1742798933498,3.0,2070.5,2070.1,4.83059]
[1742798933703,7.923,2070.5,2070.2,4.83041]
[1742798935094,7.923,2070.5,2070.2,1.04594]
[1742798935414,7.923,2070.5,2070.2,4.83035]
[1742798937591,7.923,2070.5,2070.1,4.83064]
[1742798937907,7.923,2070.5,2070.1,4.83049]
[1742798938108,7.923,2070.5,2070.2,4.83042]
[1742798938293,7.923,2070.5,2070.1,4.83049]
[1742798938495,7.923,2070.5,2070.1,9.66101]
[1742798939081,7.923,2070.5,2070.2,4.83045]
[1742798939405,7.923,2070.5,2070.1,5.876431]
[1742798939815,7.923,2070.5,2070.1,10.706921]
[1742798940416,7.923,2070.5,2070.1,5.876431]
[1742798940579,7.923,2070.5,2070.2,4.83042]
[1742798941227,7.923,2070.5,2070.1,4.83049]
[1742798941521,7.923,2070.5,2070.0,4.83087]
[1742798941708,7.97137298,2070.5,2070.0,4.83087]
[1742798941920,7.97137298,2070.5,2069.8,0.14140545]
[1742798941921,0.55,2070.3,2069.8,0.14140545]
[1742798942100,5.38039,2070.3,2069.8,0.14140545]
[1742798942301,3.0,2070.2,2069.8,0.14140545]
[1742798942505,4.922,2070.1,2069.9,4.83111]
[1742798942706,4.922,2070.1,2070.0,4.83091]
[1742798942915,3.0,2070.3,2070.2,4.83027]
[1742798943416,4.82897,2070.9,2070.2,4.83027]
[1742798943417,3.0,2070.5,2070.2,4.83024]
[1742798943621,3.0,2070.5,2070.3,4.83008]
[1742798944413,3.55,2070.8,2070.3,4.83008]
[1742798944619,3.0,2070.6,2070.3,4.83008]
[1742798944782,3.0,2070.6,2070.2,4.83024]
[1742798945313,3.0,2070.6,2070.1,5.62906]
[1742798945617,7.82952,2070.6,2070.1,0.61263115]
[1742798945817,7.87789298,2070.6,2070.0,4.83081]
[1742798946408,4.82977,2070.5,2069.9,6.12678154]
[1742798946613,3.04837298,2070.4,2069.9,4.83113]
[1742798946927,7.87835298,2070.4,2069.9,4.83113]
[1742798947218,9.5926063,2070.5,2069.9,9.6621]
[1742798947427,7.82978,2070.5,2069.9,9.6621]
[1742798947835,0.04837298,2070.4,2069.9,4.83097]
[1742798948033,12.65972,2070.5,2069.9,4.83097]
[1742798948318,14.417792,2070.5,2069.9,4.83097]
[1742798948496,9.587852,2070.5,2069.9,4.83097]
[1742798948698,4.87839298,2070.4,2069.9,4.83097]
[1742798948898,4.758072,2070.5,2069.9,4.83097]
[1742798949124,3.0,2070.5,2070.0,4.83083]
[1742798949937,3.55,2070.6,2070.0,0.7928]
[1742798950226,3.0,2070.5,2070.3,4.83003]
[1742798950427,3.0,2070.8,2070.3,0.7928]
[1742798950623,3.0,2070.8,2070.4,9.65996]
[1742798950928,3.0,2070.8,2070.4,4.82998]
[1742798951292,26.707,2071.0,2070.4,1.045299]
[1742798951502,4.92,2070.9,2070.6,4.8294]
[1742798951711,4.92,2070.9,2070.3,5.623]
[1742798951712,4.92,2070.9,2070.4,4.82998]
[1742798951918,4.92,2070.9,2070.5,4.82959]
[1742798952117,4.92,2070.9,2070.6,4.82937]
[1742798952317,26.707,2071.0,2070.7,4.82923]
[1742798953509,26.707,2071.0,2070.7,5.79509]
[1742798954024,26.707,2071.0,2070.7,5.79497]
[1742798954230,26.707,2071.0,2070.7,10.62414]
[1742798954532,26.707,2071.0,2070.7,5.79497]
[1742798954928,26.707,2071.0,2070.8,4.82902]
[1742798955304,26.707,2071.0,2070.7,5.79497]
[1742798955507,26.707,2071.0,2070.8,4.82903]
[1742798956042,8.37771,2071.4,2070.8,4.82903]
[1742798956248,3.55,2071.2,2070.8,4.82903]
[1742798956404,3.0,2071.2,2070.9,4.82867]
[1742798956622,26.705,2071.6,2070.7,5.79503]
[1742798956623,4.918,2071.4,2071.0,4.82847]
[1742798957044,4.918,2071.4,2071.0,9.65686]
[1742798957243,4.918,2071.4,2071.1,4.82828]
[1742798957449,4.918,2071.4,2071.0,5.873356]
[1742798957850,4.918,2071.4,2071.0,10.701806]
[1742798958048,7.918,2071.5,2071.1,4.82823]
[1742798958968,7.918,2071.5,2071.2,4.8281]
[1742798959257,7.918,2071.5,2071.1,4.82831]
[1742798961955,7.96637298,2071.5,2070.9,4.82861]
[1742798962126,12.74553,2071.5,2070.9,4.82861]
[1742798963175,7.918,2071.5,2071.0,4.82856]
[1742798964462,3.0,2071.2,2070.7,4.82914]
[1742798964758,3.7876343,2071.2,2070.8,4.82904]
[1742798965056,3.0,2071.2,2070.8,4.82904]
[1742798965360,3.0,2071.2,2070.8,9.6579]
[1742798965659,3.0,2071.2,2070.9,4.82875]
[1742798966153,3.0,2071.4,2070.9,4.8286]
[1742798966356,3.55,2071.4,2070.9,4.82871]
[1742798966665,0.55,2071.4,2070.9,4.82871]
[1742798966877,10.0,2071.4,2071.3,4.82788]
[1742798967075,10.0,2071.4,2071.2,4.82804]
[1742798967374,10.0,2071.4,2071.2,4.82802]
[1742798967542,10.0,2071.4,2071.2,9.65595]
[1742798967969,10.0,2071.4,2071.3,4.82788]
[1742798970275,10.0,2071.4,2071.3,6.611261]
[1742798983466,10.0,2071.4,2071.3,5.793461]
[1742798984279,10.0,2071.4,2071.3,4.82788]
[1742798990073,10.0,2071.4,2071.2,4.8281]
[1742798990379,10.0,2071.4,2071.1,4.82825]
[1742798993410,10.0,2071.4,2071.0,4.82852]
[1742798993710,3.0,2071.3,2070.9,9.65751]
[1742798994010,3.0,2071.3,2070.9,4.8287]
[1742798994216,3.0,2071.3,2070.9,9.65741]
[1742798994718,3.0,2071.3,2070.9,4.8287]
[1742798994891,4.782769,2071.3,2070.8,4.97038545]
[1742798995081,4.782769,2071.3,2070.8,4.97028545]
[1742798995283,4.782769,2071.3,2070.9,4.82881]
[1742798995613,4.83114198,2071.3,2070.8,4.97028545]
[1742798995926,9.610659,2071.3,2070.8,4.97028545]
[1742798996206,1.35036004,2071.2,2070.8,4.97028545]
[1742798996720,3.0,2071.1,2070.8,4.97043545]
[1742798998422,3.0,2071.1,2070.8,0.14140545]
[1742798998712,3.0,2070.9,2070.8,0.14140545]
[1742798998911,0.04837298,2071.0,2070.8,0.14140545]
[1742798999116,4.16188328,2071.0,2070.8,0.14140545]
[1742799000309,4.82881,2070.9,2070.8,0.14140545]
[1742799000516,5.37881,2070.9,2070.8,0.14140545]
[1742799000718,5.42718298,2070.9,2070.8,0.14140545]
[1742799001293,8.78425675,2070.9,2070.8,0.14140545]
[1742799001516,9.40514247,2070.9,2070.8,0.14140545]
[1742799001888,9.45351545,2070.9,2070.8,0.14140545]
[1742799003115,9.40514247,2070.9,2070.8,0.14140545]
[1742799004344,3.55,2070.6,2070.1,9.66116]
[1742799004639,3.55,2070.6,2069.7,9.76459373]
[1742799004640,4.908,2070.6,2070.4,4.82987]
[1742799004809,4.908,2070.6,2070.4,4.82981]
[1742799005122,3.0,2071.0,2070.5,5.63405]
[1742799005441,3.0,2070.8,2070.7,4.82924]
[1742799005639,4.908,2070.9,2070.8,4.82905]
[1742799005920,3.0,2071.1,2070.8,4.82905]
[1742799006096,3.0,2071.1,2070.8,9.658]
[1742799006296,3.0,2071.1,2070.9,4.8288]
[1742799006497,3.0,2071.1,2070.9,5.6331]
[1742799006711,36.695,2071.4,2071.0,4.82858]
[1742799006897,4.908,2071.3,2071.0,4.82858]
[1742799007205,3.0,2071.2,2071.0,4.82858]
[1742799007408,3.0,2071.3,2071.0,4.82839]
[1742799007713,3.0,2071.3,2071.0,5.874543]
[1742799007888,10.0,2071.4,2071.0,1.046153]
[1742799008083,10.0,2071.4,2071.3,4.82788]
[1742799008699,10.0,2071.4,2071.3,5.63838]
[1742799031396,10.0,2071.4,2071.3,5.84187509]
[1742799033937,9.85859455,2071.4,2071.3,5.84187509]
[1742799037405,9.85859455,2071.4,2071.3,6.39187509]
[1742799037632,9.85859455,2071.4,2071.3,10.9967076]
[1742799040312,4.55e-06,2071.4,2071.3,10.9967076]
[1742799046934,4.55e-06,2071.4,2071.3,15.8937076]
[1742799057360,4.55e-06,2071.4,2071.3,15.3437076]
[1742799058652,4.55e-06,2071.4,2071.3,15.8937076]
[1742799065436,4.55e-06,2071.4,2071.3,15.8897076]
[1742799070379,4.82462,2072.7,2072.2,4.82572]
[1742799070535,3.0,2072.6,2072.2,9.6514]
[1742799070740,3.0,2072.6,2072.2,4.82568]
[1742799070933,3.0,2072.6,2072.2,9.65135]
[1742799071137,3.0,2072.6,2072.2,10.00647654]
[1742799071346,4.37839537,2072.6,2072.3,4.82536]
[1742799072367,3.0,2072.6,2072.2,5.18087654]
[1742799072546,3.0,2072.6,2072.2,4.82575]
[1742799072746,3.04837298,2072.6,2072.2,4.82575]
[1742799074471,3.04837298,2072.6,2072.2,4.82566]
[1742799076287,3.04837298,2072.6,2072.2,9.65131]
[1742799076470,3.04837298,2072.6,2072.2,4.82565]
[1742799077575,9.63269695,2072.6,2072.1,4.82597]
[1742799077878,3.0,2072.4,2071.9,4.82648]
[1742799078181,7.8254,2072.4,2071.9,4.82648]
[1742799078471,12.76277298,2072.4,2071.9,4.82648]
[1742799078679,12.7144,2072.4,2071.9,4.82648]
[1742799078862,1.37375507,2072.3,2071.9,4.82648]
[1742799079069,1.37375507,2072.3,2072.0,4.82623]
[1742799079682,1.37375507,2072.3,2072.1,4.82592]
[1742799080561,1.37375507,2072.3,2072.0,4.82619]
[1742799080761,1.37375507,2072.3,2072.1,4.82595]
[1742799080960,1.37375507,2072.3,2072.0,4.82621]
[1742799081176,1.37375507,2072.3,2072.0,9.65236]
[1742799081478,1.37375507,2072.3,2072.0,4.82614]
[1742799082159,0.92627551,2072.2,2071.9,4.82638]
[1742799082880,0.92627551,2072.2,2071.9,9.6527]
[1742799084375,0.92627551,2072.2,2072.0,4.82624]
[1742799085873,1.37375507,2072.3,2072.0,4.82613]
[1742799090892,1.37375507,2072.3,2071.9,4.82642]
[1742799093996,1.37375507,2072.3,2072.0,4.8261]
[1742799094328,7.889,2072.4,2072.2,4.8257]
[1742799094485,7.889,2072.4,2072.1,4.826]
[1742799094486,3.0,2072.6,2072.3,4.82555]
[1742799094672,4.887,2072.6,2072.3,4.82555]
[1742799095291,4.887,2072.6,2072.3,4.82545]
[1742799095603,4.887,2072.6,2072.3,9.65089]
[1742799095778,4.887,2072.6,2072.3,4.82544]
[1742799097474,3.0,2072.5,2072.3,4.82544]
[1742799100212,3.0,2072.5,2072.4,4.82532]
[1742799100812,3.0,2072.5,2072.3,4.82544]
[1742799101112,3.0,2072.5,2072.4,4.82532]
[1742799101608,3.0,2072.5,2072.3,4.82544]
[1742799101792,3.0,2072.5,2072.3,9.65089]
[1742799102183,3.0,2072.5,2072.3,4.82544]
[1742799104187,3.0,2072.5,2072.3,9.65085]
[1742799104514,4.82392,2073.0,2072.3,9.65085]
[1742799104515,4.884,2073.1,2072.7,4.82459]
[1742799104715,3.0,2072.8,2072.2,4.82562]
[1742799105009,7.82488,2072.6,2072.1,4.82593]
[1742799105181,1.753359,2072.5,2072.1,4.82593]
[1742799105782,9.578479,2072.5,2072.0,9.65222]
[1742799106317,9.578479,2072.5,2072.1,4.82601]
[1742799107915,4.753359,2072.5,2072.2,4.82558]
[1742799108119,3.0,2072.5,2072.2,4.82558]
[1742799108693,3.0,2072.9,2072.5,4.82494]
[1742799109019,4.883,2073.0,2072.7,4.82454]
[1742799109404,4.883,2073.0,2072.6,4.8248]
[1742799110424,4.883,2073.0,2072.7,4.8245]
[1742799110597,4.883,2073.0,2072.7,9.64898]
[1742799110992,4.883,2073.0,2072.7,4.82448]
[1742799111193,3.0,2072.9,2072.7,4.82448]
[1742799112019,3.0,2073.2,2072.7,4.82448]
[1742799112192,7.882,2073.2,2072.7,4.82448]
[1742799113290,7.882,2073.2,2072.7,9.64901]
[1742799113592,9.634829,2073.2,2072.7,9.64901]
[1742799113917,1.752829,2073.2,2072.8,4.8243]
[1742799114126,1.752829,2073.2,2072.9,4.82414]
[1742799114127,3.0,2073.1,2072.9,4.82414]
[1742799114429,3.0,2073.1,2073.0,4.82392]
[1742799114590,3.0,2073.1,2072.9,4.82405]
[1742799115588,3.0,2073.4,2072.9,4.82405]
[1742799115790,4.881,2073.3,2072.9,4.82405]
[1742799116719,3.0,2073.2,2073.0,4.82381]
[1742799117123,3.0,2073.2,2073.0,9.64757]
[1742799117329,3.0,2073.2,2073.1,4.82369]
[1742799117994,3.0,2073.5,2073.1,4.82369]
[1742799118193,4.88,2073.4,2073.1,4.82369]
[1742799118422,3.0,2073.5,2073.1,4.82369]
[1742799118720,31.564,2073.6,2073.3,4.82312]
[1742799119221,26.684,2073.6,2073.2,4.82336]
[1742799119420,31.564,2073.6,2073.2,4.82336]
[1742799119621,3.04837298,2073.5,2073.1,4.82364]
[1742799119823,3.04837298,2073.5,2073.1,5.870072]
[1742799119993,3.0,2073.5,2073.1,5.870072]
[1742799120195,3.0,2073.5,2073.2,4.82343]
[1742799121321,3.0,2073.5,2073.3,0.18986075]
[1742799122025,3.0,2073.5,2073.3,5.01306075]
[1742799122391,0.55627672,2073.8,2073.4,4.82299]
[1742799122591,3.0,2073.6,2073.4,4.82299]
[1742799122820,3.0,2073.6,2073.3,5.01304075]
[1742799125323,3.0,2073.6,2073.4,4.82288]
[1742799126199,0.00627672,2073.8,2073.4,5.32415408]
[1742799126413,0.00627672,2073.8,2073.5,4.82276]
[1742799126734,0.00627672,2073.8,2073.4,10.14702408]
[1742799127029,0.00627672,2073.8,2073.5,4.82258]
[1742799128233,0.00627672,2073.8,2073.4,10.14703408]
[1742799128413,0.00627672,2073.8,2073.5,1.11537948]
[1742799128605,0.00627672,2073.8,2073.4,10.14703408]
[1742799129442,0.00627672,2073.8,2073.4,5.32414408]
[1742799129804,0.00627672,2073.8,2073.4,10.14701408]
[1742799130022,0.00627672,2073.8,2073.4,5.32412408]
[1742799130332,0.00627672,2073.8,2073.5,4.82273]